Cogmind - Beta 9.4 @@@ ROGUE MODE // 2020.03.04 @ 18:32:11 Player: David Result: Self-destructed Performance ------------- Evolutions (1) 500 Regions Visited (2) 400 Robots Destroyed (17) 85 Value Destroyed (411) 411 Prototype IDs (0) 0 Alien Tech Used (0) 0 Bonus (0) 0 TOTAL SCORE: 1396 Bonus ------- None Cogmind --------- Core Integrity 110/400 Matter 272/300 Energy 99/100 System Corruption 2% Temperature Cool (0) Movement Core (50) Location -9/Materials Parts ------- > --- POWER (1) -------- (None) > --- PROPULSION (2) --- (None) > --- UTILITY (4) ------ Structural Scanner > --- WEAPON (2) ------- (None) > --- INVENTORY (4) ---- Light Deuterium Engine Targeting Computer Targeting Computer Improved ECM Suite Peak State ------------ > --- POWER ------------ Ion Engine > --- PROPULSION ------- Wheel Compact Wheel > --- UTILITY ---------- Medium Storage Unit Structural Scanner Targeting Computer Targeting Computer > --- WEAPON ----------- EM Shotgun EM Shotgun > --- INVENTORY -------- Light Nuclear Core Targeting Computer Targeting Computer Utility Shielding [Rating: 11] Favorites ----------- Power Ion Engine Engine Ion Engine Power Core Light Nuclear Core Propulsion Wheel Wheel Wheel Hover Unit Backup Propulsion I Utility Visual Processing Unit Device Structural Scanner Storage Medium Storage Unit Processor Visual Processing Unit Protection Utility Shielding Weapon Grenade Launcher Energy Gun Medium Laser Ballistic Cannon Light Cannon Launcher Grenade Launcher Build | -11 -10 -9 ------- Run | Scr Mat Mat Slots Evolved 2 | . . 2 Power . | . . . Propulsion . | . . . Utility 2 | . . 2 Weapon . | . . . Parts Attached 30 | 5 17 8 Power 4 | 1 2 1 Engine 3 | 1 1 1 Core 1 | . 1 . Reactor . | . . . Propulsion 7 | 2 5 . Treads . | . . . Leg . | . . . Wheel 5 | 2 3 . Hover 2 | . 2 . Flight . | . . . Utility 8 | . 4 4 Device 2 | . . 2 Storage 2 | . 2 . Processor 3 | . 1 2 Hackware . | . . . Protection 1 | . 1 . Artifact . | . . . Weapon 11 | 2 6 3 Energy Gun 7 | 2 2 3 Energy Cannon . | . . . Ballistic Gun . | . . . Ballistic Cannon 1 | . 1 . Launcher 3 | . 3 . Special Weapon . | . . . Impact Weapon . | . . . Slashing Weapon . | . . . Piercing Weapon . | . . . Special Melee Weapon . | . . . Unidentified Prototypes . | . . . Parts Lost 9 | . 4 5 Power 1 | . . 1 Propulsion 3 | . 1 2 Utility . | . . . Weapon 5 | . 3 2 Highest Loss Streak 5 | . 3 5 Average Slot Usage (%) 79 | . 88 59 Engine 6 | . 7 5 Core 4 | . 6 . Wheel 20 | . 25 9 Device 3 | . . 11 Storage 7 | . 7 5 Processor 12 | . 10 17 Protection 1 | . 1 . Energy Gun 9 | . 11 2 Ballistic Cannon 2 | . 2 2 Launcher 9 | . 12 4 Naked Turns 1 | . . 1 Heaviest Build 20 | 9 19 20 Greatest Support 26 | 20 26 26 Greatest Overweight (x) 4 | . 4 2 Average Overweight (x) . | . . . Largest Inventory Capacity 8 | 4 8 8 Average Capacity 5 | 4 5 6 Most Carried 8 | 2 8 6 Average Carried 4 | . 4 4 Final Capacity 8 | 4 8 4 Final Carried 7 | . 7 4 Class Distribution -------------------- 100% | Mutant Dominant Class ---------------- Mutant | -10/Materials Mutant | -9/Materials Resources | -11 -10 -9 ----------- Run | Scr Mat Mat Matter Collected 626 | 250 178 198 Remotely . | . . . Salvage Created 420 | . 327 93 Parts 33 | . 27 6 Haulers Intercepted 1 | . 1 . Recyclers Shooed 1 | . . 1 Parts Field Recycled . | . . . Retrieved Matter . | . . . Parts Self-Destructed . | . . . Prevented . | . . . Kills | -11 -10 -9 ------- Run | Scr Mat Mat Combat Hostiles Destroyed 11 | . 9 2 Melee 1 | . . 1 Guns 1 | . . 1 AOE 9 | . 9 . Classes Destroyed 8 | . 7 1 Worker 2 | . 2 . Builder 1 | . 1 . Hauler 1 | . 1 . Operator 1 | . 1 . Watcher 1 | . 1 . Swarmer 3 | . 3 . Grunt 6 | . 6 . Sentry 2 | . . 2 Best Kill Streak 7 | . 7 1 Combat Bots Only 5 | . 5 1 Max Kills in Single Turn 3 | . 3 1 Gunslinging . | . . . Exploded 2 | . 2 . Melee 1 | . . 1 Uniques/NPCs Destroyed . | . . . Combat | -11 -10 -9 -------- Run | Scr Mat Mat Damage Taken 895 | . 300 595 Core 320 | . 30 290 Absorbed by Shields . | . . . Core Remaining (%) 94 | 100 88 . Volleys Fired 49 | 1 40 8 Largest 2 | 2 2 2 Hottest 100 | 100 83 90 Shots Fired 64 | 2 47 15 Gun 38 | 2 25 11 Cannon 7 | . 7 . Launcher 19 | . 15 4 Special . | . . . Kinetic 7 | . 7 . Thermal 19 | 2 13 4 Explosive 16 | . 12 4 Electromagnetic 22 | . 15 7 Robot Hit Streak 13 | . 6 13 Robot Miss Streak 3 | . 3 1 Penetration Max . | . . . Secondary Targets . | . . . Shots Hit Robots 41 | . 28 13 Core Hits 30 | . 20 10 Critical Hits . | . . . Critical Kills . | . . . Critical Parts Destroyed . | . . . Melee Attacks . | . . . Impact . | . . . Slashing . | . . . Piercing . | . . . Sneak Attacks . | . . . Combat Hostiles . | . . . Follow-up Attacks . | . . . Damage Inflicted 1124 | . 941 183 Guns 315 | . 183 132 Cannons 68 | . 68 . Explosions 736 | . 690 46 Melee . | . . . Ramming 5 | . . 5 Kinetic 68 | . 68 . Thermal 189 | . 145 44 Explosive 586 | . 540 46 Electromagnetic 276 | . 188 88 Impact . | . . . Slashing . | . . . Piercing . | . . . Highest Corruption 2 | . 1 2 Average Corruption 1 | . 1 2 Corruption Purged . | . . . Effects 6 | . 3 3 Message Errors 3 | . 1 2 Heat Flow Errors 1 | . . 1 Targeting Errors 2 | . 2 . Overload Shots . | . . . Overflow Damage 25 | . 25 . Projectiles 6 | . 6 . Explosions 19 | . 19 . Melee . | . . . Knockbacks 1 | . 1 . Impact . | . . . Kinetic 1 | . 1 . Secondary . | . . . Self-Inflicted Damage 76 | . 74 2 Shots 5 | . 5 . Rammed 2 | . . 2 Targets Rammed 2 | . . 2 Kicked . | . . . Crushed . | . . . Highest Temperature 233 | 39 137 233 Average Temperature 49 | 24 41 70 Received Heat Transfer 318 | . 72 246 Siege Activations . | . . . Robots Corrupted . | . . . Combat Hostiles . | . . . Parts Fried 3 | . 2 1 Impact Corruptions . | . . . Robots Melted . | . . . Combat Hostiles . | . . . Parts Melted . | . . . Heat Transferred 420 | . 309 111 Parts Sabotaged . | . . . Parts Stolen . | . . . Parts Stripped . | . . . Power Chain Reactions 1 | . 1 . Missiles Intercepted . | . . . Alert | -11 -10 -9 ------- Run | Scr Mat Mat Peak Influence 262 | . 262 125 Average Influence 108 | . 123 89 Maximum Alert Level 1 | . 1 . Low Security (%) 84 | 100 77 100 Level 1 15 | . 22 . Level 2 . | . . . Level 3 . | . . . Level 4 . | . . . Level 5 . | . . . High Security . | . . . Max Security . | . . . Squads Dispatched 3 | . 2 1 Investigation 1 | . . 1 Extermination . | . . . Reinforcement 2 | . 2 . Assault . | . . . Garrison . | . . . Intercept . | . . . Construction Impeded . | . . . Haulers Reinforced . | . . . Stealth | -11 -10 -9 --------- Run | Scr Mat Mat Distress Signals 1 | . . 1 Communications Jammed . | . . . Distress Signals . | . . . Times Spotted 45 | . 18 27 Peak Tracking Total 12 | . 5 12 Tactical Retreats 6 | . . 6 Traps | -11 -10 -9 ------- Run | Scr Mat Mat Traps Triggered 1 | . . 1 Indirectly . | . . . Trap Hack Attempts . | . . . Triggered . | . . . Disarmed 20 | . 20 . Reprogrammed 6 | . . 6 Reused 1 | . . 1 Traps Extracted . | . . . Installed . | . . . Triggered 1 | . . 1 Machines | -11 -10 -9 ---------- Run | Scr Mat Mat Machines Disabled 3 | . 3 . Max in Single Turn 1 | . 1 . Machines Sabotaged . | . . . Garrisons Compromised . | . . . Overloaded Fab Kills . | . . . Fab Network Shutdowns . | . . . Hacking | -11 -10 -9 --------- Run | Scr Mat Mat Machines Accessed 10 | . 8 2 Terminals 7 | . 5 2 Fabricators . | . . . Repair Stations 1 | . 1 . Recycling Units 2 | . 2 . Scanalyzers . | . . . Garrison Access . | . . . Total Hacks 28 | . 19 9 Successful 16 | . 14 2 Failed 12 | . 5 7 Catastrophic 2 | . 1 1 Database Lockouts . | . . . Manual . | . . . Terminals 22 | . 13 9 Fabricators . | . . . Repair Stations 4 | . 4 . Recycling Units 2 | . 2 . Scanalyzers . | . . . Garrison Access . | . . . Terminal Hacks 11 | . 9 2 Record 1 | . . 1 Branch Access Points 1 | . 1 . Locate Traps 3 | . 3 . Disarm Traps 4 | . 4 . Reprogram Traps 1 | . . 1 Registered Components 1 | . 1 . Fabricator Hacks . | . . . Repair Station Hacks 3 | . 3 . Scan Component 1 | . 1 . Repair 1 | . 1 . Refit 1 | . 1 . Recycling Unit Hacks 2 | . 2 . Retrieve Components 2 | . 2 . Scanalyzer . | . . . Garrison Access Hacks . | . . . Unauthorized Hacks . | . . . Terminals . | . . . Fabricators . | . . . Repair Stations . | . . . Recycling Units . | . . . Scanalyzers . | . . . Garrison Access . | . . . Data Cores Recovered . | . . . Used . | . . . Hacking Detections 5 | . 3 2 Full Trace Events . | . . . Feedback Events . | . . . Feedback Blocked . | . . . Robot Schematics Acquired . | . . . Robots Built . | . . . Matter . | . . . Time . | . . . Total Robot Build Rating . | . . . Part Schematics Acquired . | . . . Parts Built . | . . . Matter . | . . . Time . | . . . Total Part Build Rating . | . . . Parts Repaired 1 | . 1 . Time 38 | . 38 . Parts Recycled . | . . . Recycled Matter . | . . . Retrieved Matter . | . . . Retrieved Components 6 | . 6 . Parts Scanalyzed . | . . . Part Schematics Acquired . | . . . Parts Damaged . | . . . Bothacking | -11 -10 -9 ------------ Run | Scr Mat Mat Used RIF Installer . | . . . Robots Hacked . | . . . Non-combat . | . . . Combat . | . . . Robot Hacks Applied . | . . . Relay Couplers Released . | . . . Robots Rewired . | . . . Allies Hacked . | . . . Hacks Repelled . | . . . Allies | -11 -10 -9 -------- Run | Scr Mat Mat Total Allies . | . . . Largest Group . | . . . Highest-Rated Group . | . . . Highest-Rated Ally . | . . . Total Orders . | . . . Ally Attacks . | . . . Total Damage . | . . . Kills . | . . . Allies Corrupted . | . . . Allies Melted . | . . . Intel | -11 -10 -9 ------- Run | Scr Mat Mat Robot Analysis Total . | . . . Derelict Logs Recovered . | . . . Drone Launches . | . . . Drone Recoveries . | . . . Exploration | -11 -10 -9 ------------- Run | Scr Mat Mat Turns Passed 958 | 40 634 284 Spaces Moved 876 | 33 513 330 Core 233 | 6 2 225 Treads . | . . . Legs . | . . . Wheels 643 | 27 511 105 Hover . | . . . Flight . | . . . Fastest Speed 50 | 50 80 50 Average Speed 79 | 74 87 67 Slowest Speed 250 | 80 250 150 Overloaded Moves . | . . . Propulsion Burnouts . | . . . Robots Hopped . | . . . Cave-ins Triggered . | . . . Exploration Rate (%) 35 | 3 77 27 Regions Visited 2 Branch Regions . Pre-discovered Areas . | . . . Known Exits Taken . | . . . Unknown Exits Taken 2 | 1 1 . Scrap Searched . | . . . Spaces Dug 10 | . 10 . Terrain Destroyed 104 | . 76 28 Melee . | . . . Projectile . | . . . AOE 104 | . 76 28 Actions | -11 -10 -9 --------- Run | Scr Mat Mat Total 1075 | 46 649 380 Wait 75 | 3 52 20 Move 874 | 32 512 330 Hop . | . . . Pick Up 29 | 5 20 4 Fast Attach 3 | . 1 2 Attach 19 | 5 8 6 Detach 2 | . . 2 Swap 8 | . 8 . Drop 14 | . 8 6 Fire 49 | 1 40 8 Melee . | . . . Ram 2 | . . 2 Kick . | . . . Crush . | . . . Escape Stasis . | . . . Rewire . | . . . Trap . | . . . Miscellaneous . | . . . Route ------- -11/Scrapyard -10/Materials (discovered 2 exits: *Mat / *Min) -9/Materials History --------- Turn | Location | Event 16 | -11/Scrapyard | Discovered new exit (range 16) 41 | -11/Scrapyard | Entered Materials 170 | -10/Materials | Lost 3 parts (1n2w) 201 | -10/Materials | Repaired Lgt. Nuclear Core 253 | -10/Materials | Identified exit to Mines 316 | -10/Materials | Build established: Mutant 369 | -10/Materials | Discovered new exit (range 18) 675 | -10/Materials | Entered another Materials area 675 | -9/Materials | Evolved 2 slots: Utility x2 837 | -9/Materials | Lost 5 parts (1p2n2w) 949 | -9/Materials | Core integrity fell below 50% 959 | -9/Materials | Self-destructed Last Messages --------------- 00813_ K-01 Serf collects debris. 00825_ Dropped Med. Storage Unit. 00833_ 6AN8/UAC,GKN9EKS,WIHQ 00836_ U-05 Engineer lays Concrete. 00859_ Acquired 108 matter. 00875_ MXUR2P NE9RWYEO769CN5ZI 00882_ Acquired Lgt. Deuterium Engine. 00883_ Dropped Lgt. Nuclear Core. 00887_ Acquired Imp. ECM Suite. 00888_ Dropped Utility Shielding. 00894_ Triggered Blade Trap. 00894_ Massive razor-sharp blades shoot up from within the floor. 00894_ Targeting Computer severed. 00894_ Structural Scanner severed. 00894_ Targeting Computer severed. 00895_ Acquired Structural Scanner. 00916_ System corrupted: Heat flow error (+261). 00937_ R-06 Scavenger collects Lgt. Nuclear Core. 00943_ W-16 Scout sends out distress signal. 00956_ K-01 Serf cleans the Terminal. Map ----- +----------------------------------------------------+ | # #???######?????????????????????????????? | | + !##### #?????????????????????????????? | | ][ # #?????????????????????????????? | | ][ # #?????????????????????????????? | | [[ ?# ##### #?????????????????????????????? | | ?# #???## ##?????????????????????????????? | | ??# ###### #????#?????????????????????????? | | ??# # # #### #?????????????????????????? | | ####???# # # #?????????????????????????? | | ???????# # #!= +?????????????????????????? | | ???????# #]![ # !######?????????????????????????? | | ???????# +[! ! ####???????????????????????????? | | ???????# # # #???????????????????????????? | | #?????## ###### #???????????????????????????? | | # ##### #???????????????????????????? | | ######################### ?? | | # # ## ? | | ####### #### # # ### | | ??????######### # " ![[## ## | | ??????# """ ### # T ![ ## #######/#??????# | | ??????# "T" # # ## " ![ ## #??????????????# | | ??????# ### ## ## g #??????????????# | | ??????# ]### ######+#####g #??????????????# | | ??########+##### ##### gg #####??????????# | | ??# w g +??????????# | | ??# ############## @ "" #####??????????# | | ### # #?????# "" #??????????????# | | # + #?????# T" #??????????????# | | # # """#?????# "" #??????????????# | | + # """#?????# ""k ################# | | # # """#?????#! | | # # #?????# | | # ########?????# w | | ### ############## ##################### | | ??# #???????????????????# | | ??# #######+########### #???????????????????#* ! | | ??# #???# #??????# a#???????????????????#**! | | ??# #???# #??????# s#???????????????????#### | | ??# #???# """ #??????#s #??????????????????????? | | ??# #???# """ #??????# #??????????????????????? | | ??# #???# """ #??????#s #??????????????????????? | | ??# #???# #??????# #??????????????????????? | | ??# #???########??????# #??????????????????????? | | ?## ################### #??????????????????????? | | ?# ^ ??????????????????????? | | ?# ^ ??????????????????????? | | ?# ^ ??????????????????????? | | ?#### ######+#### ###+??????????????????????? | | ???# ??# #???? !#?????????????????????????? | | ???# ### """ #????????????????????????????????? | +----------------------------------------------------+ Best States ------------- Heat Dissipation 28 Energy Generation 14 Energy Capacity 250 Matter Stores 300 Matter Capacity 300 Sight Range 18 Terrain Scan Density 10 Utility Shielding 33 Evasion (%) 50 Targeting Accuracy 10 Item Schematics ----------------- None Robot Schematics ------------------ None Fabricated ------------ Nothing Alien Tech Used ----------------- None Achievements -------------- None Challenges ------------ None Game ------ Seed GravmagGrenadeFemtoactuators Manual? 0 Play Time 00:20:44 Cumulative 39.2 hours Start 2020.03.04 @ 18:11:36 End 2020.03.04 @ 18:32:11 Sessions 1 Manual Loads 0 Difficulty Rogue Special Mode None Game No. 60 Rogue 60 Adventurer 0 Explorer 0 Win Type - Total 0 Types 0/0/0/0/0/0/0 Lore% 27 Gallery% 34 Achievement% 17 Wizard Run 0 Options --------- ASCII 0 Keyboard 0 Movement Mouse Keybinds 0 Fullscreen 1 Font 18/Smallcaps Map View 76x50 Tactical HUD 1 Map Filters NONE Filters NONE Steam 1 RUN: 374eec13-18d1-446d-a10c-9717d5c671d7